fUST/lending_fUST_20251126
["ID","MTS","AMOUNT","RATE_DAILY","PERIOD"]
[394904315,1764106235421,-151.0,0.00010685,2]
[394904316,1764106235430,-151.0,0.00010685,2]
[394904317,1764106235440,-151.0,0.00010685,2]
[394904318,1764106235450,-151.0,0.00010685,2]
[394904319,1764106235460,-151.0,0.00010685,2]
[394904320,1764106235469,-240.207037,0.00010685,2]
[394904321,1764106235479,-221.907127,0.00010685,2]
[394904322,1764106235489,-221.907127,0.00010685,2]
[394904323,1764106235498,-221.907127,0.00010685,2]
[394904324,1764106235508,-221.907127,0.00010685,2]
[394904325,1764106235517,-221.907127,0.00010685,2]
[394904326,1764106235527,-221.907127,0.00010685,2]
[394904327,1764106235537,-221.907127,0.00010685,2]
[394904328,1764106235547,-221.907127,0.00010685,2]
[394904329,1764106235556,-221.907127,0.00010685,2]
[394904330,1764106235566,-221.907127,0.00010685,2]
[394904331,1764106235576,-221.907127,0.00010685,2]
[394904332,1764106235586,-221.907127,0.00010685,2]
[394904333,1764106235596,-1337.154774,0.00010685,2]
[394904334,1764106235606,-1337.154774,0.00010685,2]
[394904335,1764106235616,-1337.154774,0.00010685,2]
[394904336,1764106235626,-1337.154774,0.00010685,2]
[394904337,1764106235636,-1337.154774,0.00010685,2]
[394904338,1764106235646,-1337.154774,0.00010685,2]
[394904339,1764106235655,-1337.154774,0.00010685,2]
[394904340,1764106235665,-1337.154774,0.00010685,2]
[394904341,1764106235675,-1337.154774,0.00010685,2]
[394904342,1764106235685,-1337.154774,0.00010685,2]
[394904343,1764106235695,-1337.154774,0.00010685,2]
[394904344,1764106235705,-1337.154774,0.00010685,2]
[394904345,1764106235715,-260.165246,0.00010685,2]
[394904346,1764106235725,-260.165246,0.00010685,2]
[394904347,1764106235734,-260.165246,0.00010685,2]
[394904348,1764106235743,-260.165246,0.00010685,2]
[394904349,1764106235754,-260.165246,0.00010685,2]
[394904350,1764106235769,-260.165246,0.00010685,2]
[394904351,1764106235779,-260.165246,0.00010685,2]
[394904352,1764106235788,-260.165246,0.00010685,2]
[394904353,1764106235799,-260.165246,0.00010685,2]
[394904354,1764106235808,-260.165246,0.00010685,2]
[394904355,1764106235818,-260.165246,0.00010685,2]
[394904356,1764106235828,-260.165246,0.00010685,2]
[394904357,1764106235840,-320.8227,0.00010685,2]
[394904358,1764106235850,-320.8227,0.00010685,2]
[394904359,1764106235859,-320.8227,0.00010685,2]
[394904360,1764106235869,-320.8227,0.00010685,2]
[394904361,1764106235879,-320.8227,0.00010685,2]
[394904362,1764106235890,-320.8227,0.00010685,2]
[394904363,1764106235900,-320.8227,0.00010685,2]
[394904364,1764106235910,-320.8227,0.00010685,2]
[394904365,1764106235919,-320.8227,0.00010685,2]
[394904366,1764106235928,-320.8227,0.00010685,2]
[394904367,1764106235938,-320.8227,0.00010685,2]
[394904368,1764106235948,-320.8227,0.00010685,2]
[394904369,1764106235958,-393.972864,0.00010685,2]
[394904370,1764106235968,-393.972864,0.00010685,2]
[394904371,1764106235978,-393.972864,0.00010685,2]
[394904372,1764106235988,-393.972864,0.00010685,2]
[394904373,1764106235997,-393.972864,0.00010685,2]
[394904374,1764106236007,-393.972864,0.00010685,2]
[394904375,1764106236016,-393.972864,0.00010685,2]
[394904376,1764106236025,-393.972864,0.00010685,2]
[394904377,1764106236035,-393.972864,0.00010685,2]
[394904378,1764106236045,-393.972864,0.00010685,2]
[394904379,1764106236054,-393.972864,0.00010685,2]
[394904380,1764106236064,-393.972864,0.00010685,2]
[394904381,1764106236073,-151.0,0.00010685,2]
[394904382,1764106236083,-151.0,0.00010685,2]
[394904383,1764106236093,-151.0,0.00010685,2]
[394904384,1764106236102,-151.0,0.00010685,2]
[394904385,1764106236112,-151.0,0.00010685,2]
[394904386,1764106236121,-151.0,0.00010685,2]
[394904387,1764106236130,-151.0,0.00010685,2]
[394904388,1764106236142,-151.0,0.00010685,2]
[394904389,1764106236151,-151.0,0.00010685,2]
[394904390,1764106236161,-151.0,0.00010685,2]
[394904391,1764106236171,-151.0,0.00010685,2]
[394904392,1764106236181,-151.0,0.00010685,2]
[394904393,1764106236191,-217.596688,0.00010685,2]
[394904394,1764106236201,-214.573079,0.00010685,2]
[394904395,1764106236211,-1337.154774,0.00010685,2]
[394904396,1764106236220,-1337.154774,0.00010685,2]
[394904397,1764106236230,-1337.154774,0.00010685,2]
[394904398,1764106236239,-1337.154774,0.00010685,2]
[394904399,1764106236248,-260.165246,0.00010685,2]
[394904400,1764106236258,-260.165246,0.00010685,2]
[394904401,1764106236267,-260.165246,0.00010685,2]
[394904402,1764106236277,-260.165246,0.00010685,2]
[394904403,1764106236287,-320.8227,0.00010685,2]
[394904404,1764106236297,-320.8227,0.00010685,2]
[394904405,1764106236307,-320.8227,0.00010685,2]
[394904406,1764106236316,-320.8227,0.00010685,2]
[394904407,1764106236326,-393.972864,0.00010685,2]
[394904408,1764106236335,-393.972864,0.00010685,2]
[394904409,1764106236345,-393.972864,0.00010685,2]
[394904410,1764106236355,-393.972864,0.00010685,2]
[394904411,1764106236364,-151.0,0.00010685,2]
[394904412,1764106236373,-151.0,0.00010685,2]
[394904413,1764106236383,-151.0,0.00010685,2]
[394904414,1764106236396,-151.0,0.00010685,2]
[394904415,1764106236406,-151.0,0.00010685,2]
[394904416,1764106236415,-151.0,0.00010685,2]
[394904417,1764106236425,-151.0,0.00010685,2]
[394904418,1764106236434,-151.0,0.00010685,2]
[394904419,1764106236444,-151.0,0.00010685,2]
[394904420,1764106236453,-180.512256,0.00010685,2]
[394904421,1764106236464,-186.74916865,0.00010748,2]
[394904422,1764106236474,-293.109,0.00010805,2]
[394904423,1764106236483,-500.0,0.00010821,2]
[394904424,1764106236493,-151.0,0.00010821,2]
[394904425,1764106236503,-639.00602671,0.00010821,2]
[394904426,1764106236513,-151.0,0.00010822,2]
[394904427,1764106236523,-151.0,0.00010822,2]
[394904428,1764106236533,-151.0,0.00010822,2]
[394904429,1764106236543,-151.0,0.00010822,2]
[394904430,1764106236552,-151.0,0.00010822,2]
[394904431,1764106236561,-151.0,0.00010822,2]
[394904432,1764106236572,-151.0,0.00010822,2]
[394904433,1764106236581,-151.0,0.00010822,2]
[394904434,1764106236592,-151.0,0.00010822,2]
[394904435,1764106236601,-153.087303,0.00010822,2]
[394904436,1764106236611,-151.0,0.00010822,2]
[394904437,1764106236621,-151.0,0.00010822,2]
[394904438,1764106236630,-151.0,0.00010822,2]
[394904439,1764106236641,-151.0,0.00010822,2]
[394904440,1764106236651,-478.816254,0.00010822,2]
[394904441,1764106236660,-478.816254,0.00010822,2]
[394904442,1764106236670,-478.816254,0.00010822,2]
[394904443,1764106236680,-478.816254,0.00010822,2]
[394904444,1764106236689,-240.36239724,0.00010856,2]
[394904445,1764106236699,-151.0,0.00010859,2]
[394904446,1764106236708,-151.0,0.00010859,2]
[394904447,1764106236718,-151.0,0.00010859,2]
[394904448,1764106236728,-151.0,0.00010859,2]
[394904449,1764106236737,-337.976099,0.00010859,2]
[394904450,1764106236747,-337.976099,0.00010859,2]
[394904451,1764106236757,-337.976099,0.00010859,2]
[394904452,1764106236771,-337.976099,0.00010859,2]
[394904453,1764106236780,-156.68223,0.00010859,2]
[394904454,1764106236790,-151.0,0.00010859,2]
[394904455,1764106236801,-151.0,0.00010859,2]
[394904456,1764106236811,-151.0,0.00010859,2]
[394904457,1764106236821,-221.907127,0.00010859,2]
[394904458,1764106236830,-221.907127,0.00010859,2]
[394904459,1764106236842,-221.907127,0.00010859,2]
[394904460,1764106236851,-221.907127,0.00010859,2]
[394904461,1764106236860,-500.0,0.00010958,2]
[394904462,1764106236870,-198.0,0.00010958,2]
[394904463,1764106236879,-500.0,0.00010958,2]
[394904464,1764106236890,-591.41442047,0.00010958,2]
[394904465,1764106236900,-500.0,0.00010958,2]
[394904466,1764106236910,-500.0,0.00010958,2]
[394904467,1764106236919,-500.0,0.00010958,2]
[394904468,1764106236928,-285.89091678,0.00010958,2]
[394904469,1764106236937,-500.0,0.00010958,2]
[394904470,1764106236947,-500.0,0.00010958,2]
[394904471,1764106236956,-537.49,0.00010958,2]
[394904472,1764106236966,-500.0,0.00010958,2]
[394904473,1764106236975,-500.0,0.00010958,2]
[394904474,1764106236984,-151.0,0.00010958,2]
[394904475,1764106236994,-151.0,0.00010958,2]
[394904476,1764106237003,-151.0,0.00010958,2]
[394904477,1764106237012,-151.0,0.00010958,2]
[394904478,1764106237022,-151.0,0.00010958,2]
[394904479,1764106237031,-151.0,0.00010958,2]
[394904480,1764106237041,-500.0,0.00010958,2]
[394904481,1764106237050,-151.0,0.00010958,2]
[394904482,1764106237060,-198.940875,0.00010958,2]
[394904483,1764106237069,-275.408182,0.00010958,2]
[394904484,1764106237079,-500.0,0.00010958,2]
[394904485,1764106237088,-500.0,0.00010958,2]
[394904486,1764106237097,-649.07,0.00010958,2]
[394904487,1764106237107,-151.0,0.00010958,2]
[394904488,1764106237116,-500.0,0.00010958,2]
[394904489,1764106237126,-151.0,0.00010958,2]
[394904490,1764106237135,-151.0,0.00010958,2]
[394904491,1764106237145,-500.0,0.00010958,2]
[394904492,1764106237154,-151.0,0.00010958,2]
[394904493,1764106237164,-151.0,0.00010958,2]
[394904494,1764106237173,-151.0,0.00010958,2]
[394904495,1764106237183,-282.272,0.00010958,2]
[394904496,1764106237198,-151.0,0.00010958,2]
[394904497,1764106237210,-500.0,0.00010958,2]
[394904498,1764106237221,-500.0,0.00010958,2]
[394904499,1764106237230,-500.0,0.00010958,2]
[394904500,1764106237239,-500.0,0.00010958,2]
[394904501,1764106237249,-500.0,0.00010958,2]
[394904502,1764106237258,-500.0,0.00010958,2]
[394904503,1764106237268,-500.0,0.00010958,2]
[394904504,1764106237277,-500.0,0.00010958,2]
[394904505,1764106237287,-151.0,0.00010958,2]
[394904506,1764106237297,-151.0,0.00010958,2]
[394904507,1764106237307,-500.0,0.00010958,2]
[394904508,1764106237316,-500.0,0.00010958,2]
[394904509,1764106237326,-500.0,0.00010958,2]
[394904510,1764106237335,-500.0,0.00010958,2]
[394904511,1764106237344,-151.0,0.00010958,2]
[394904512,1764106237354,-153.560215,0.00010958,2]
[394904513,1764106237363,-500.0,0.00010958,2]
[394904514,1764106237372,-2385.98,0.00010958,2]
[394904515,1764106237382,-454.09139565,0.00010958,2]
[394904516,1764106237391,-549.40629022,0.00010958,2]
[394904517,1764106237401,-500.0,0.00010958,2]
[394904518,1764106237411,-500.0,0.00010958,2]
[394904519,1764106237422,-509.7586574,0.00010958,2]
[394904520,1764106237432,-500.0,0.00010958,2]
[394904521,1764106237441,-500.0,0.00010958,2]
[394904522,1764106237451,-597.07,0.00010958,2]
[394904523,1764106237460,-500.0,0.00010958,2]
[394904524,1764106237471,-500.0,0.00010958,2]
[394904525,1764106237480,-500.0,0.00010958,2]
[394904526,1764106237490,-575.91,0.00010958,2]
[394904527,1764106237499,-500.0,0.00010958,2]
[394904528,1764106237509,-500.0,0.00010958,2]
[394904529,1764106237518,-548.42,0.00010958,2]
[394904530,1764106237527,-500.0,0.00010958,2]
[394904531,1764106237537,-950.34,0.00010958,2]
[394904532,1764106237546,-887.62,0.00010958,2]
[394904533,1764106237556,-500.0,0.00010958,2]
[394904534,1764106237565,-500.0,0.00010958,2]
[394904535,1764106237575,-500.0,0.00010958,2]
[394904536,1764106237584,-348.64223251,0.00010958,2]
[394904537,1764106237594,-889.49,0.00010958,2]
[394904538,1764106237769,-500.0,0.00010958,2]
[394904539,1764106237779,-1087.12,0.00010958,2]
[394904540,1764106237788,-1839.84,0.00010958,2]
[394904541,1764106237796,-500.0,0.00010958,2]
[394904542,1764106237807,-500.0,0.00010958,2]
[394904543,1764106237816,-402.43438891,0.00010958,2]
[394904544,1764106237825,-500.0,0.00010958,2]
[394904545,1764106237834,-500.0,0.00010958,2]
[394904546,1764106237844,-556.00109604,0.00010958,2]
[394904547,1764106237852,-500.0,0.00010958,2]
[394904548,1764106237862,-500.0,0.00010958,2]
[394904549,1764106237871,-500.0,0.00010958,2]
[394904550,1764106237879,-500.0,0.00010958,2]
[394904551,1764106237889,-500.0,0.00010958,2]
[394904552,1764106237898,-500.0,0.00010958,2]
[394904553,1764106237907,-500.0,0.00010958,2]
[394904554,1764106237917,-1153.31,0.00010958,2]
[394904555,1764106237926,-500.0,0.00010958,2]
[394904556,1764106237936,-500.0,0.00010958,2]
[394904557,1764106237946,-500.0,0.00010958,2]
[394904558,1764106237955,-770.37,0.00010958,2]
[394904559,1764106237964,-306.07617968,0.00010958,2]
[394904560,1764106237973,-982.98,0.00010958,2]
[394904561,1764106237981,-500.0,0.00010958,2]
[394904562,1764106237990,-1589.75,0.00010958,2]
[394904563,1764106238000,-679.52,0.00010958,2]
[394904564,1764106238017,-500.0,0.00010958,2]
[394904565,1764106238026,-500.0,0.00010958,2]
[394904566,1764106238036,-500.0,0.00010958,2]
[394904567,1764106238045,-500.0,0.00010958,2]
[394904568,1764106238055,-500.0,0.00010958,2]
[394904569,1764106238064,-500.0,0.00010958,2]
[394904570,1764106238073,-500.0,0.00010958,2]
[394904571,1764106238083,-500.0,0.00010958,2]
[394904572,1764106238092,-500.0,0.00010958,2]
[394904573,1764106238102,-1204.23,0.00010958,2]
[394904574,1764106238111,-500.0,0.00010958,2]
[394904575,1764106238120,-151.0,0.00010958,2]
[394904576,1764106238130,-155.008628,0.00010958,2]
[394904577,1764106238140,-500.0,0.00010958,2]
[394904579,1764106238149,-500.0,0.00010958,2]
[394904580,1764106238159,-214.41934695,0.00010958,2]
[394904581,1764106238168,-500.0,0.00010958,2]
[394904582,1764106238178,-500.0,0.00010958,2]
[394904583,1764106238188,-5986.28,0.00010958,2]
[394904584,1764106238197,-551.3022495,0.00010958,2]
[394904585,1764106238206,-500.0,0.00010958,2]
[394904586,1764106238216,-500.0,0.00010958,2]
[394904587,1764106238225,-500.0,0.00010958,2]
[394904588,1764106238235,-162.8000454,0.00010958,2]
[394904590,1764106238244,-478.816254,0.00010958,2]
[394904592,1764106238253,-478.816254,0.00010958,2]
[394904593,1764106238263,-478.816254,0.00010958,2]
[394904595,1764106238272,-478.816254,0.00010958,2]
[394904596,1764106238281,-478.816254,0.00010958,2]
[394904597,1764106238291,-500.0,0.00010958,2]
[394904598,1764106238300,-478.816254,0.00010958,2]
[394904599,1764106238309,-478.816254,0.00010958,2]
[394904600,1764106238318,-500.0,0.00010958,2]
[394904602,1764106238327,-478.816258,0.00010958,2]
[394904603,1764106238336,-512.17,0.00010958,2]
[394904605,1764106238345,-151.0,0.00010958,2]
[394904607,1764106238355,-500.0,0.00010958,2]
[394904608,1764106238364,-151.0,0.00010958,2]
[394904609,1764106238373,-151.0,0.00010958,2]
[394904610,1764106238383,-500.0,0.00010958,2]
[394904611,1764106238393,-253.32920176,0.00010958,2]
[394904612,1764106238402,-151.0,0.00010958,2]
[394904613,1764106238412,-337.976099,0.00010958,2]
[394904614,1764106238422,-337.976099,0.00010958,2]
[394904615,1764106238432,-1246.74,0.00010958,2]
[394904617,1764106238441,-1000.0,0.00010958,2]
[394904618,1764106238450,-337.976099,0.00010958,2]
[394904619,1764106238460,-337.976095,0.00010958,2]
[394904620,1764106238469,-500.0,0.00010958,2]
[394904621,1764106238479,-500.0,0.00010958,2]
[394904622,1764106238488,-151.0,0.00010958,2]
[394904623,1764106238498,-500.0,0.00010958,2]
[394904625,1764106238508,-151.0,0.00010958,2]
[394904626,1764106238518,-151.0,0.00010958,2]
[394904627,1764106238527,-2203.76,0.00010958,2]
[394904628,1764106238537,-500.0,0.00010958,2]
[394904629,1764106238547,-500.0,0.00010958,2]
[394904630,1764106238556,-500.0,0.00010958,2]
[394904631,1764106238566,-775.38,0.00010958,2]
[394904632,1764106238577,-303.81297716,0.00010958,2]
[394904633,1764106238587,-1047.34,0.00010958,2]
[394904634,1764106238597,-962.67,0.00010958,2]
[394904635,1764106238607,-500.0,0.00010958,2]
[394904636,1764106238616,-221.907127,0.00010958,2]
[394904637,1764106238626,-620.73432842,0.00010958,2]
[394904638,1764106238635,-221.907127,0.00010958,2]
[394904639,1764106238646,-500.0,0.00010958,2]
[394904640,1764106238656,-221.907127,0.00010958,2]
[394904641,1764106238665,-534.39,0.00010958,2]
[394904642,1764106238675,-221.907122,0.00010958,2]
[394904643,1764106238684,-500.0,0.00010958,2]
[394904644,1764106238694,-1337.154774,0.00010958,2]
[394904645,1764106238703,-1337.154774,0.00010958,2]
[394904646,1764106238716,-500.0,0.00010958,2]
[394904647,1764106238725,-1337.154774,0.00010958,2]
[394904648,1764106238735,-1337.154782,0.00010958,2]
[394904649,1764106238744,-260.165246,0.00010958,2]
[394904650,1764106238754,-260.165246,0.00010958,2]
[394904651,1764106238767,-260.165246,0.00010958,2]
[394904652,1764106238776,-500.0,0.00010958,2]
[394904653,1764106238786,-260.165243,0.00010958,2]
[394904654,1764106238795,-525.04,0.00010958,2]
[394904655,1764106238806,-500.0,0.00010958,2]
[394904656,1764106238815,-320.8227,0.00010958,2]
[394904657,1764106238824,-320.8227,0.00010958,2]
[394904658,1764106238835,-500.0,0.00010958,2]
[394904659,1764106238845,-320.8227,0.00010958,2]
[394904660,1764106238853,-320.822699,0.00010958,2]
[394904661,1764106238862,-393.972864,0.00010958,2]
[394904662,1764106238872,-393.972864,0.00010958,2]
[394904663,1764106238881,-500.0,0.00010958,2]
[394904664,1764106238892,-393.972864,0.00010958,2]
[394904665,1764106238902,-393.972872,0.00010958,2]
[394904666,1764106238911,-500.0,0.00010958,2]
[394904667,1764106238921,-500.0,0.00010958,2]
[394904668,1764106238930,-500.0,0.00010958,2]
[394904669,1764106238940,-500.0,0.00010958,2]
[394904670,1764106238950,-500.0,0.00010958,2]
[394904671,1764106238959,-678.03,0.00010958,2]
[394904672,1764106238969,-500.0,0.00010958,2]
[394904673,1764106238979,-1585.2,0.00010958,2]
[394904674,1764106238988,-500.0,0.00010958,2]
[394904675,1764106238998,-1397.12,0.00010958,2]
[394904676,1764106239007,-1312.83,0.00010958,2]
[394904677,1764106239017,-520.52,0.00010958,2]
[394904678,1764106239026,-500.0,0.00010958,2]
[394904679,1764106239035,-500.0,0.00010958,2]
[394904680,1764106239045,-500.0,0.00010958,2]
[394904681,1764106239054,-500.0,0.00010958,2]
[394904682,1764106239064,-500.0,0.00010958,2]
[394904683,1764106239073,-556.94,0.00010958,2]
[394904684,1764106239083,-500.0,0.00010958,2]
[394904685,1764106239092,-500.0,0.00010958,2]
[394904686,1764106239101,-500.0,0.00010958,2]
[394904687,1764106239111,-500.0,0.00010958,2]
[394904688,1764106239121,-782.04,0.00010958,2]
[394904689,1764106239131,-1178.13,0.00010958,2]
[394904690,1764106239142,-557.52,0.00010958,2]
[394904691,1764106239151,-500.0,0.00010958,2]
[394904692,1764106239161,-1681.48,0.00010958,2]
[394904693,1764106239171,-500.0,0.00010958,2]
[394904694,1764106239180,-500.0,0.00010958,2]
[394904695,1764106239190,-500.0,0.00010958,2]
[394904696,1764106239199,-1255.55,0.00010958,2]
[394904697,1764106239208,-500.0,0.00010958,2]
[394904698,1764106239217,-500.0,0.00010958,2]
[394904699,1764106239227,-649.96,0.00010958,2]
[394904700,1764106239236,-500.0,0.00010958,2]
[394904701,1764106239246,-500.0,0.00010958,2]
[394904702,1764106239255,-1346.19,0.00010958,2]
[394904703,1764106239264,-1475.1,0.00010958,2]
[394904704,1764106239274,-2124.34,0.00010958,2]
[394904705,1764106239283,-500.0,0.00010958,2]
[394904706,1764106239292,-500.0,0.00010958,2]
[394904707,1764106239302,-500.0,0.00010958,2]
[394904708,1764106239313,-909.77,0.00010958,2]
[394904709,1764106239323,-2071.06,0.00010958,2]
[394904710,1764106239333,-500.0,0.00010958,2]
[394904711,1764106239342,-1885.54,0.00010958,2]
[394904712,1764106239352,-500.0,0.00010958,2]
[394904713,1764106239361,-1570.8,0.00010958,2]
[394904714,1764106239370,-500.0,0.00010958,2]
[394904715,1764106239380,-500.0,0.00010958,2]
[394904716,1764106239389,-1088.63,0.00010958,2]
[394904717,1764106239397,-1539.35,0.00010958,2]
[394904718,1764106239407,-500.0,0.00010958,2]
[394904719,1764106239417,-663.59,0.00010958,2]
[394904720,1764106239428,-500.0,0.00010958,2]
[394904721,1764106239438,-1388.24,0.00010958,2]
[394904722,1764106239448,-1567.16,0.00010958,2]
[394904723,1764106239458,-500.0,0.00010958,2]
[394904724,1764106239468,-500.0,0.00010958,2]
[394904725,1764106239477,-500.0,0.00010958,2]
[394904726,1764106239486,-799.22,0.00010958,2]
[394904727,1764106239495,-500.0,0.00010958,2]
[394904728,1764106239504,-500.0,0.00010958,2]
[394904729,1764106239514,-3374.46,0.00010958,2]
[394904730,1764106239523,-500.0,0.00010958,2]
[394904731,1764106239533,-500.0,0.00010958,2]
[394904732,1764106239543,-500.0,0.00010958,2]
[394904733,1764106239552,-500.0,0.00010958,2]
[394904734,1764106239562,-1062.2,0.00010958,2]
[394904735,1764106239572,-500.0,0.00010958,2]
[394904736,1764106239581,-547.6291711,0.00010958,2]
[394904737,1764106239590,-2253.56,0.00010958,2]
[394904738,1764106239599,-500.0,0.00010958,2]
[394904739,1764106239609,-1320.08,0.00010958,2]
[394904740,1764106239618,-500.0,0.00010958,2]
[394904741,1764106239627,-500.0,0.00010958,2]
[394904742,1764106239636,-2527.53,0.00010958,2]
[394904743,1764106239646,-500.0,0.00010958,2]
[394904744,1764106239655,-728.08,0.00010958,2]
[394904745,1764106239665,-2205.7,0.00010958,2]
[394904746,1764106239674,-1579.57,0.00010958,2]
[394904747,1764106239683,-4514.9,0.00010958,2]
[394904748,1764106239693,-500.0,0.00010958,2]
[394904749,1764106239702,-613.25,0.00010958,2]
[394904750,1764106239712,-500.0,0.00010958,2]
[394904751,1764106239722,-2006.82,0.00010958,2]
[394904752,1764106239731,-957.82,0.00010958,2]
[394904753,1764106239740,-500.0,0.00010958,2]
[394904754,1764106239750,-500.0,0.00010958,2]
[394904755,1764106239760,-500.0,0.00010958,2]
[394904756,1764106239773,-270.17379956,0.00010958,2]
[394904757,1764106239782,-500.0,0.00010958,2]
[394904758,1764106239791,-1051.21,0.00010958,2]
[394904759,1764106239800,-221.52047575,0.00010958,2]
[394904760,1764106239810,-863.96,0.00010958,2]
[394904761,1764106239819,-500.0,0.00010958,2]
[394904762,1764106239828,-3928.14,0.00010958,2]
[394904763,1764106239839,-2310.0,0.00010958,2]
[394904764,1764106239848,-808.35,0.00010958,2]
[394904765,1764106239857,-500.0,0.00010958,2]
[394904766,1764106239866,-820.23,0.00010958,2]
[394904767,1764106239875,-500.0,0.00010958,2]
[394904768,1764106239885,-2035.28,0.00010958,2]
[394904769,1764106239894,-743.2,0.00010958,2]
[394904770,1764106239903,-2087.73,0.00010958,2]
[394904771,1764106239913,-753.17,0.00010958,2]
[394904772,1764106239922,-500.0,0.00010958,2]
[394904773,1764106239931,-533.03545735,0.00010958,2]
[394904774,1764106239940,-541.74,0.00010958,2]
[394904775,1764106239950,-500.0,0.00010958,2]
[394904776,1764106239959,-522.69,0.00010958,2]
[394904777,1764106239969,-512.66,0.00010958,2]
[394904778,1764106239978,-9674.88,0.00010958,2]
[394904779,1764106239987,-1001.17,0.00010958,2]
[394904780,1764106239996,-500.0,0.00010958,2]
[394904781,1764106240006,-500.0,0.00010958,2]
[394904782,1764106240015,-1661.74,0.00010958,2]
[394904783,1764106240024,-908.37,0.00010958,2]
[394904784,1764106240034,-998.5,0.00010958,2]
[394904785,1764106240043,-500.0,0.00010958,2]
[394904786,1764106240052,-500.0,0.00010958,2]
[394904787,1764106240062,-500.0,0.00010958,2]
[394904788,1764106240071,-999.0,0.00010959,2]
[394904789,1764106240081,-151.0,0.00010959,2]
[394904790,1764106240094,-151.0,0.00010959,2]
[394904791,1764106240103,-500.0,0.00010959,2]
[394904792,1764106240113,-500.0,0.00010959,2]
[394904793,1764106240122,-500.0,0.00010959,2]
[394904794,1764106240131,-500.0,0.00010959,2]
[394904795,1764106240142,-500.0,0.00010959,2]
[394904796,1764106240151,-500.0,0.00010959,2]
[394904797,1764106240160,-500.0,0.00010959,2]
[394904798,1764106240170,-500.0,0.00010959,2]
[394904799,1764106240179,-500.0,0.00010959,2]
[394904800,1764106240188,-500.0,0.00010959,2]
[394904801,1764106240198,-500.0,0.00010959,2]
[394904802,1764106240208,-500.0,0.00010959,2]
[394904803,1764106240218,-500.0,0.00010959,2]
[394904804,1764106240227,-500.0,0.00010959,2]
[394904805,1764106240236,-500.0,0.00010959,2]
[394904806,1764106240246,-500.0,0.00010959,2]
[394904807,1764106240255,-500.0,0.00010959,2]
[394904808,1764106240264,-500.0,0.00010959,2]
[394904810,1764106240274,-283.78384987,0.00010959,2]
[394904811,1764106240283,-500.0,0.00010959,2]
[394904813,1764106240292,-500.0,0.00010959,2]
[394904815,1764106240301,-500.0,0.00010959,2]
[394904817,1764106240312,-500.0,0.00010959,2]
[394904819,1764106240321,-500.0,0.00010959,2]
[394904821,1764106240330,-500.0,0.00010959,2]
[394904823,1764106240339,-500.0,0.00010959,2]
[394904825,1764106240349,-500.0,0.00010959,2]
[394904826,1764106240359,-500.0,0.00010959,2]
[394904827,1764106240368,-500.0,0.00010959,2]
[394904828,1764106240377,-500.0,0.00010959,2]
[394904829,1764106240387,-500.0,0.00010959,2]
[394904830,1764106240396,-500.0,0.00010959,2]
[394904831,1764106240406,-500.0,0.00010959,2]